[Event "Bicaz City Cup 2020"]
[Site "Bicaz"]
[Date "2020.03.07"]
[Round "5.18"]
[White "Pitigoi, Sabina-Andreea"]
[Black "Tablan, Matei-Christian"]
[Result "0-1"]
[ECO "A04"]
[WhiteElo "1687"]
[BlackElo "1858"]
[Annotator "NA RC"]
[PlyCount "154"]
[EventDate "2020.03.05"]
[EventType "swiss"]
[EventCountry "ROU"]
[SourceTitle "playchess.com"]
[Source "ChessBase"]
[SourceQuality "1"]
[TimeControl "5400+30"]

1. Nf3 {[%emt 0:00:00]} c5 {[%emt 0:00:02]} 2. c4 {[%emt 0:01:19]} e6 {[%emt 0:00:44]} 3. Nc3 {[%emt 0:00:47]} Nc6 {[%emt 0:03:55]} 4. g3 {[%emt 0:02:11]} g6 {[%emt 0:02:42]} 5. Bg2 {[%emt 0:02:00]} Bg7 {[%emt 0:01:05]} 6. O-O {[%emt 0:01:54]} Nge7 {[%emt 0:00:57]} 7. d3 {[%emt 0:04:25]} d6 {[%emt 0:13:26] A37: Symmetrical English vs ...g6: 4 Bg2 Bg7 5 Nf3.} 8. Bd2 {[%emt 0:01:48]} O-O {[%emt 0:00:20]} 9. a3 {[%emt 0:01:24]} a6 {[%emt 0:15:22] [#]} 10. Qc2 $146 {[%emt 0:04:30]} ({Predecessor:} 10. Rb1 Rb8 11. b4 cxb4 12. axb4 b5 13. cxb5 axb5 14. Ne1 Bd7 15. Nc2 Rb6 16. Ne4 Qc7 17. e3 f5 18. Nc3 Rc8 {1-0 (61) Riazantsev,A (2596)-Mamedyarov,S (2657) Moscow 2005}) 10... Rb8 {[%emt 0:03:18]} 11. Rfb1 {[%emt 0:15:11]} b5 {[%emt 0:27:48]} 12. cxb5 {[%emt 0:01:30]} axb5 {[%emt 0:00:21]} 13. b4 {[%emt 0:00:40]} c4 {[%emt 0:05:13]} 14. a4 {[%emt 0:06:40]} cxd3 {[%emt 0:02:09]} 15. Qxd3 {[%emt 0:00:19]} bxa4 {[%emt 0:00:08]} 16. Rxa4 {[%emt 0:00:13]} Ne5 {[%emt 0:02:07]} 17. Nxe5 {[%emt 0:01:53]} Bxe5 {[%emt 0:00:06]} 18. b5 {[%emt 0:05:55]} d5 {[%emt 0:01:29]} 19. Be3 {[%emt 0:10:17]} Bd7 {[%emt 0:01:37]} 20. Rab4 {[%emt 0:02:06]} Qa5 {[%emt 0:08:28]} 21. Bd4 {[%emt 0:07:27]} Bxd4 {[%emt 0:01:50]} 22. Qxd4 {[%emt 0:01:47]} Rfc8 {[%emt 0:03:19]} 23. e4 {[%emt 0:03:57]} Qc7 {[%emt 0:00:30]} 24. R4b3 {[%emt 0:01:26]} e5 {[%emt 0:02:24]} 25. Qb4 {[%emt 0:02:41]} d4 {[%emt 0:00:10]} 26. Qxe7 {[%emt 0:08:53]} dxc3 {[%emt 0:00:03]} 27. Rc1 {[%emt 0:00:33]} Bxb5 {[%emt 0:03:24]} 28. Qxc7 {[%emt 0:00:44]} Rxc7 {[%emt 0:00:00]} 29. Rbxc3 {[%emt 0:00:12]} Rxc3 {[%emt 0:00:23]} 30. Rxc3 {[%emt 0:00:04]} Be2 {[%emt 0:00:15]} 31. Rc1 {[%emt 0:01:39]} Rb4 {[%emt 0:00:29]} 32. Re1 {[%emt 0:01:02]} Bd3 {[%emt 0:00:07]} 33. f4 {[%emt 0:01:49]} exf4 {[%emt 0:00:50]} 34. gxf4 {[%emt 0:00:11]} f5 {[%emt 0:00:32]} 35. exf5 {[%emt 0:00:54]} Bxf5 {[%emt 0:01:02]} 36. Rf1 {[%emt 0:02:25]} Kg7 {[%emt 0:00:30]} 37. Rf2 {[%emt 0:01:35]} Bg4 {[%emt 0:00:32]} 38. h3 {[%emt 0:00:56]} Bf5 {[%emt 0:00:06]} 39. Kh2 {[%emt 0:00:51]} Kf6 {[%emt 0:00:53]} 40. Kg3 {[%emt 0:01:21]} Rc4 {[%emt 0:00:34]} 41. Rf1 {[%emt 0:01:31]} Be6 {[%emt 0:00:35]} 42. Rf2 {[%emt 0:00:30]} Kf5 {[%emt 0:00:26]} 43. Rf1 {[%emt 0:01:11]} Rc3+ {[%emt 0:00:20]} 44. Rf3 {[%emt 0:00:25]} Rc2 {[%emt 0:00:04]} 45. Ra3 {[%emt 0:01:41]} Rc5 {[%emt 0:00:29]} 46. Re3 {[%emt 0:00:42]} Kf6 {[%emt 0:00:54]} 47. Kh2 {[%emt 0:01:12]} h6 {[%emt 0:00:18]} 48. Kg3 {[%emt 0:00:04]} Bd5 {[%emt 0:00:46]} 49. Bxd5 {[%emt 0:00:40]} Rxd5 {[%emt 0:00:03]} 50. h4 $11 {[%emt 0:00:46]} h5 {[%emt 0:00:56]} 51. Rf3 {[%emt 0:00:31]} Rd1 {[%emt 0:00:16]} 52. Kg2 {[%emt 0:00:36]} Kf5 {[%emt 0:00:09]} 53. Rg3 {[%emt 0:00:35]} Rd2+ {[%emt 0:00:06]} 54. Kg1 {[%emt 0:00:34]} Rd6 {[%emt 0:00:10]} 55. Rg5+ {[%emt 0:00:28]} Kxf4 {[%emt 0:00:07]} 56. Kf2 {[%emt 0:00:13]} Ra6 {[%emt 0:00:46]} 57. Ke2 {[%emt 0:00:32]} Ra2+ {[%emt 0:00:19]} 58. Kd3 {[%emt 0:00:09]} Rh2 {[%emt 0:00:18]} 59. Rxg6 {[%emt 0:00:12]} Rxh4 {[%emt 0:00:09]} 60. Ra6 {[%emt 0:01:02]} Rh2 {[%emt 0:00:58]} 61. Ra4+ {[%emt 0:00:19]} Kf3 {[%emt 0:00:09]} 62. Ra8 {[%emt 0:00:40]} Rf2 {[%emt 0:01:20]} 63. Rf8+ {[%emt 0:00:37]} Kg3 {[%emt 0:00:21]} 64. Rg8+ {[%emt 0:00:06]} Kh3 {[%emt 0:00:06]} 65. Ke3 {[%emt 0:00:19]} Rf7 {[%emt 0:00:11]} 66. Ke2 {[%emt 0:00:40]} h4 {[%emt 0:00:04]} 67. Ke1 {[%emt 0:00:30]} Kh2 {[%emt 0:01:40]} 68. Ke2 {[%emt 0:00:29]} h3 {[%emt 0:00:04]} 69. Ke1 {[%emt 0:00:23]} Rf3 {[%emt 0:00:22]} 70. Ke2 {[%emt 0:00:28]} Rg3 {[%emt 0:00:14]} 71. Ra8 {[%emt 0:00:26]} Kg2 {[%emt 0:00:29]} 72. Rf8 {[%emt 0:00:58]} h2 {[%emt 0:00:08]} 73. Rf2+ {[%emt 0:00:16]} Kh3 {[%emt 0:00:28]} 74. Rf1 {[%emt 0:00:34]} Rg1 {[%emt 0:00:07]} 75. Rf8 {[%emt 0:01:07]} h1=Q {[%emt 0:00:24]} 76. Rh8+ {[%emt 0:00:27]} Kg4 {[%emt 0:00:04]} 77. Rxh1 {[%emt 0:00:18]} Rxh1 {[%emt 0:00:03]} 0-1

[Event "Bicaz City Cup 2020"]
[Site "Bicaz"]
[Date "2020.03.07"]
[Round "5.19"]
[White "Russeva, Viktoria"]
[Black "Tufa, Mihai"]
[Result "0-1"]
[ECO "B22"]
[WhiteElo "1550"]
[BlackElo "1835"]
[Annotator "NA RC"]
[PlyCount "114"]
[EventDate "2020.03.05"]
[EventType "swiss"]
[EventCountry "ROU"]
[SourceTitle "playchess.com"]
[Source "ChessBase"]
[SourceQuality "1"]
[TimeControl "5400+30"]

1. e4 {[%emt 0:00:00]} c5 {[%emt 0:00:00]} 2. c3 {[%emt 0:00:00]} Nf6 {[%emt 0:00:06]} 3. e5 {[%emt 0:00:08]} Nd5 {[%emt 0:00:14]} 4. d4 {[%emt 0:00:30]} cxd4 {[%emt 0:00:13]} 5. cxd4 {[%emt 0:00:03]} e6 {[%emt 0:00:49]} 6. Nf3 {[%emt 0:00:43]} Nc6 {[%emt 0:05:20]} 7. Bc4 {[%emt 0:00:55]} Nb6 {[%emt 0:02:59]} 8. Bd3 {[%emt 0:03:13]} d6 {[%emt 0:01:02]} 9. O-O {[%emt 0:01:15]} Nb4 {[%emt 0:07:00]} 10. Bb5+ {[%emt 0:03:19]} Bd7 {[%emt 0:00:17]} 11. Bxd7+ {[%emt 0:00:11]} Qxd7 {[%emt 0:00:17]} 12. Nc3 {[%emt 0:01:08]} d5 {[%emt 0:06:18]} 13. Bd2 {[%emt 0:04:26]} Nc4 {[%emt 0:01:19]} 14. b3 {[%emt 0:01:53]} Nxd2 {[%emt 0:00:43]} 15. Qxd2 {[%emt 0:00:03]} Nc6 {[%emt 0:04:13]} 16. Qb2 {[%emt 0:06:33]} Be7 {[%emt 0:01:04]} 17. Rac1 {[%emt 0:00:41]} O-O {[%emt 0:01:01]} 18. Na4 {[%emt 0:01:35]} b6 {[%emt 0:01:05]} 19. Qd2 {[%emt 0:10:22]} Ba3 {[%emt 0:03:15]} 20. Rc2 {[%emt 0:02:42]} Nb4 {[%emt 0:02:12]} 21. Rc3 {[%emt 0:00:28]} Rfc8 {[%emt 0:00:52]} 22. Nh4 {[%emt 0:01:47]} Rxc3 {[%emt 0:05:55]} 23. Nxc3 {[%emt 0:00:20]} Rc8 {[%emt 0:13:39]} 24. Nb1 {[%emt 0:06:14]} Rc2 {[%emt 0:00:13]} 25. Qe1 {[%emt 0:00:37]} Rc1 {[%emt 0:00:52]} 26. Qd2 {[%emt 0:01:36]} Rxf1+ {[%emt 0:08:29]} 27. Kxf1 {[%emt 0:00:04]} Qb5+ {[%emt 0:00:46]} 28. Kg1 {[%emt 0:00:23]} Qa6 {[%emt 0:03:07]} 29. h3 {[%emt 0:01:27]} h6 {[%emt 0:03:27]} 30. f4 {[%emt 0:01:42]} b5 {[%emt 0:00:43]} 31. f5 {[%emt 0:03:23]} Nc6 32. Nxa3 Qxa3 33. fxe6 fxe6 {[%emt 0:06:13]} 34. Qc3 {[%emt 0:01:45]} Ne7 {[%emt 0:01:54]} 35. Qc7 {[%emt 0:07:45]} Kf7 {[%emt 0:00:14]} 36. Qc2 {[%emt 0:00:19]} a5 {[%emt 0:01:26]} 37. Qe2 {[%emt 0:03:07]} Qc1+ {[%emt 0:02:37]} 38. Qf1+ {[%emt 0:00:14]} Qxf1+ {[%emt 0:00:25]} 39. Kxf1 {[%emt 0:00:02]} Nc6 {[%emt 0:02:03]} 40. Nf3 {[%emt 0:00:09]} a4 {[%emt 0:04:36]} 41. bxa4 {[%emt 0:02:18]} bxa4 {[%emt 0:00:09]} 42. a3 {[%emt 0:00:26]} Na5 {[%emt 0:00:27]} 43. Ne1 {[%emt 0:01:23]} Nc4 {[%emt 0:02:41]} 44. Nc2 {[%emt 0:00:10]} Ke7 {[%emt 0:00:42]} 45. Ke2 {[%emt 0:00:41]} Kd7 {[%emt 0:00:07]} 46. Kd3 {[%emt 0:01:32]} Kc6 {[%emt 0:00:09]} 47. Kc3 {[%emt 0:00:21]} Kb5 48. Kd3 Nb2+ 49. Kc3 Nc4 {[%emt 0:04:44]} 50. Kd3 {[%emt 0:01:23]} h5 {[%emt 0:00:53]} 51. Kc3 {[%emt 0:01:17]} g5 {[%emt 0:00:39]} 52. Kd3 {[%emt 0:00:20]} Nxa3 {[%emt 0:03:25]} 53. Nxa3+ {[%emt 0:00:05]} Kb4 {[%emt 0:02:39]} 54. Nb1 {[%emt 0:03:59]} a3 {[%emt 0:00:40]} 55. Nc3 {[%emt 0:00:21]} Kb3 {[%emt 0:00:15]} 56. Na2 {[%emt 0:00:31]} Kxa2 {[%emt 0:00:26]} 57. Kc2 {[%emt 0:00:07]} h4 {[%emt 0:00:12]} 0-1

[Event "Bicaz City Cup 2020"]
[Site "Bicaz"]
[Date "2020.03.08"]
[Round "6.6"]
[White "Bejan, Sergiu"]
[Black "Dobre, Claudiu-Cristian"]
[Result "0-1"]
[ECO "A85"]
[WhiteElo "1915"]
[BlackElo "2312"]
[Annotator "ChessBase"]
[PlyCount "92"]
[EventDate "2020.03.05"]
[EventType "swiss"]
[EventCountry "ROU"]
[SourceTitle "playchess.com"]
[Source "ChessBase"]
[SourceQuality "1"]
[TimeControl "5400+30"]

1. d4 {[%emt 0:00:00]} f5 {[%emt 0:00:00]} 2. c4 {[%emt 0:00:07]} Nf6 {[%emt 0:00:00]} 3. Nc3 {[%emt 0:00:17]} d6 {[%emt 0:00:00]} 4. Bg5 {[%emt 0:00:37]} Nbd7 {[%emt 0:00:16]} 5. Qc2 {[%emt 0:00:36]} g6 {[%emt 0:02:22]} 6. Nf3 {[%emt 0:01:36]} Bg7 {[%emt 0:00:35]} 7. O-O-O {[%emt 0:08:03]} c6 {[%emt 0:06:11]} 8. Bxf6 {[%emt 0:04:34]} Nxf6 {[%emt 0:00:43]} 9. e3 {[%emt 0:00:38]} a6 {[%emt 0:02:59]} 10. Bd3 {[%emt 0:05:26]} b5 {[%emt 0:01:57]} 11. h4 {[%emt 0:06:37]} O-O {[%emt 0:04:56]} 12. Ng5 {[%emt 0:05:34]} Qe8 {[%emt 0:05:58]} 13. f3 {[%emt 0:14:23]} e5 {[%emt 0:10:50]} 14. dxe5 {[%emt 0:02:17]} dxe5 {[%emt 0:06:12]} 15. e4 {[%emt 0:10:11]} f4 {[%emt 0:01:01]} 16. Qb3 {[%emt 0:02:59]} Kh8 {[%emt 0:04:25]} 17. Qb4 {[%emt 0:06:26]} h6 {[%emt 0:03:23]} 18. Nh3 {[%emt 0:01:10]} Rf7 {[%emt 0:00:43]} 19. Nf2 {[%emt 0:03:37]} Bf8 {[%emt 0:12:33]} 20. Qa5 {[%emt 0:02:08]} Be6 {[%emt 0:00:31]} 21. b3 {[%emt 0:01:12]} Qb8 {[%emt 0:02:55]} 22. Kc2 {[%emt 0:02:54]} Bc5 {[%emt 0:01:13]} 23. Rhf1 {[%emt 0:02:32]} Bb6 {[%emt 0:01:40]} 24. Qa3 {[%emt 0:00:30]} Bxf2 {[%emt 0:00:27]} 25. Rxf2 {[%emt 0:00:27]} b4 {[%emt 0:00:08]} 26. Qa4 {[%emt 0:00:13]} Qb6 {[%emt 0:00:03]} 27. Rfd2 {[%emt 0:00:56]} bxc3 {[%emt 0:07:18]} 28. Kxc3 {[%emt 0:00:06]} c5 {[%emt 0:02:46]} 29. Be2 {[%emt 0:01:04]} Rd7 {[%emt 0:00:24]} 30. Rxd7 {[%emt 0:01:35]} Bxd7 {[%emt 0:00:07]} 31. Qa3 {[%emt 0:01:27]} a5 {[%emt 0:09:14]} 32. Kc2 {[%emt 0:01:00]} a4 {[%emt 0:01:02]} 33. Qb2 {[%emt 0:01:20]} Qc7 {[%emt 0:00:16]} 34. g3 {[%emt 0:00:28]} fxg3 {[%emt 0:02:07]} 35. f4 {[%emt 0:00:38]} Re8 {[%emt 0:00:21]} 36. Bf3 {[%emt 0:01:47]} Bc6 {[%emt 0:00:33]} 37. Re1 {[%emt 0:00:23]} Kg7 {[%emt 0:01:46]} 38. Qc3 {[%emt 0:01:52]} Kf7 {[%emt 0:01:08]} 39. f5 {[%emt 0:01:53]} gxf5 {[%emt 0:00:23]} 40. exf5 {[%emt 0:00:18]} e4 {[%emt 0:01:37]} 41. Bg2 {[%emt 0:00:32]} Qe5 {[%emt 0:01:22]} 42. Qe3 {[%emt 0:00:37]} axb3+ {[%emt 0:00:28]} 43. Qxb3 {[%emt 0:01:27]} Rb8 {[%emt 0:00:41]} 44. Qa3 {[%emt 0:00:27]} Ba4+ {[%emt 0:00:45]} 45. Kc1 {[%emt 0:01:00]} Qa1+ {[%emt 0:01:17]} 46. Kd2 {[%emt 0:00:03]} Qd4+ {[%emt 0:00:57] Ra1} 0-1

[Event "Bicaz City Cup 2020"]
[Site "Bicaz"]
[Date "2020.03.08"]
[Round "6.8"]
[White "Telea, Stefan"]
[Black "Ienasoaie, Rafael"]
[Result "1-0"]
[ECO "A05"]
[WhiteElo "2006"]
[BlackElo "1883"]
[Annotator "ChessBase"]
[PlyCount "79"]
[EventDate "2020.03.05"]
[EventType "swiss"]
[EventCountry "ROU"]
[SourceTitle "playchess.com"]
[Source "ChessBase"]
[SourceQuality "1"]
[TimeControl "5400+30"]

1. Nf3 {[%emt 0:02:59]} Nf6 {[%emt 0:00:00]} 2. c4 {[%emt 0:00:46]} c6 {[%emt 0:00:02]} 3. g3 {[%emt 0:00:54]} d5 {[%emt 0:00:26]} 4. Bg2 {[%emt 0:00:58]} e6 {[%emt 0:00:12]} 5. O-O {[%emt 0:01:18]} Bd6 {[%emt 0:00:30]} 6. d4 {[%emt 0:01:57]} Nbd7 {[%emt 0:00:15]} 7. Nc3 {[%emt 0:01:21]} O-O {[%emt 0:01:07]} 8. e4 {[%emt 0:03:12]} Nxe4 {[%emt 0:10:07]} 9. Nxe4 {[%emt 0:00:24]} dxe4 {[%emt 0:00:05]} 10. Ng5 {[%emt 0:00:13]} Be7 {[%emt 0:00:27]} 11. Nxe4 {[%emt 0:02:26]} Nb6 {[%emt 0:00:48]} 12. b3 {[%emt 0:02:37]} f5 {[%emt 0:01:56]} 13. Nc3 {[%emt 0:05:45]} Bf6 {[%emt 0:00:28]} 14. Be3 {[%emt 0:02:09]} Qe7 {[%emt 0:01:14]} 15. Qc2 {[%emt 0:03:27]} Bd7 {[%emt 0:01:43]} 16. a4 {[%emt 0:02:08]} Be8 {[%emt 0:00:27]} 17. a5 {[%emt 0:06:25]} Nc8 {[%emt 0:01:53]} 18. a6 {[%emt 0:06:42]} Bg6 {[%emt 0:02:24]} 19. f4 {[%emt 0:02:11]} Nb6 {[%emt 0:00:34]} 20. Na4 {[%emt 0:09:43]} Rfd8 {[%emt 0:12:55]} 21. Rfd1 {[%emt 0:09:06]} Rac8 {[%emt 0:01:08]} 22. axb7 {[%emt 0:06:45]} Qxb7 {[%emt 0:00:11]} 23. Nc5 {[%emt 0:02:53]} Qe7 {[%emt 0:03:34]} 24. Qf2 {[%emt 0:01:45]} Bf7 {[%emt 0:01:44]} 25. Nd3 {[%emt 0:00:51]} g6 {[%emt 0:01:25]} 26. Ne5 {[%emt 0:00:41]} Be8 {[%emt 0:00:27]} 27. Bf3 {[%emt 0:02:08]} Rc7 {[%emt 0:03:33]} 28. Qg2 {[%emt 0:03:35]} Rdc8 {[%emt 0:01:08]} 29. Ra6 {[%emt 0:01:44]} Kh8 {[%emt 0:12:58]} 30. Rda1 {[%emt 0:00:28]} g5 {[%emt 0:03:32]} 31. fxg5 {[%emt 0:03:47]} Bxg5 {[%emt 0:00:09]} 32. Bxg5 {[%emt 0:00:43]} Qxg5 {[%emt 0:00:13]} 33. Qf2 {[%emt 0:00:34]} Qg7 {[%emt 0:03:15]} 34. c5 {[%emt 0:01:23]} Nd5 {[%emt 0:03:50]} 35. Bxd5 {[%emt 0:01:02]} exd5 {[%emt 0:00:11]} 36. Qxf5 {[%emt 0:00:18]} Rb8 {[%emt 0:00:51]} 37. Rxa7 {[%emt 0:00:54]} Bg6 {[%emt 0:04:34]} 38. Rxc7 {[%emt 0:01:49]} Qxc7 {[%emt 0:01:46]} 39. Qf6+ {[%emt 0:00:35]} Kg8 {[%emt 0:00:12]} 40. Nxc6 {[%emt 0:00:32]} 1-0

[Event "Bicaz City Cup 2020"]
[Site "Bicaz"]
[Date "2020.03.08"]
[Round "6.9"]
[White "Tablan, Matei-Christian"]
[Black "Antal, Hunor-Zoltan"]
[Result "1/2-1/2"]
[ECO "D05"]
[WhiteElo "1858"]
[BlackElo "1989"]
[Annotator "ChessBase"]
[PlyCount "77"]
[EventDate "2020.03.05"]
[EventType "swiss"]
[EventCountry "ROU"]
[SourceTitle "playchess.com"]
[Source "ChessBase"]
[SourceQuality "1"]
[TimeControl "5400+30"]

1. d4 {[%emt 0:00:00]} Nf6 {[%emt 0:00:00]} 2. Nf3 {[%emt 0:00:37]} d5 {[%emt 0:00:00]} 3. e3 {[%emt 0:00:15]} e6 {[%emt 0:00:13]} 4. Bd3 {[%emt 0:00:06]} c5 {[%emt 0:00:33]} 5. b3 {[%emt 0:00:05]} Nc6 {[%emt 0:00:16]} 6. Bb2 {[%emt 0:00:11]} Bd6 {[%emt 0:02:08]} 7. O-O {[%emt 0:01:49]} Qc7 {[%emt 0:02:02]} 8. a3 {[%emt 0:01:21]} Bd7 {[%emt 0:00:55]} 9. Nbd2 {[%emt 0:00:53]} e5 {[%emt 0:03:35]} 10. dxe5 {[%emt 0:01:59]} Nxe5 {[%emt 0:00:08]} 11. Bxe5 {[%emt 0:00:10]} Bxe5 {[%emt 0:00:05]} 12. Nxe5 {[%emt 0:00:06]} Qxe5 {[%emt 0:00:05]} 13. e4 {[%emt 0:05:28]} O-O-O {[%emt 0:07:12]} 14. exd5 {[%emt 0:02:02]} Qxd5 {[%emt 0:06:51]} 15. Qf3 {[%emt 0:08:50]} Bc6 {[%emt 0:02:22]} 16. Qxd5 {[%emt 0:03:25]} Nxd5 {[%emt 0:00:24]} 17. g3 {[%emt 0:11:08]} Nc3 {[%emt 0:05:35]} 18. Rfe1 {[%emt 0:02:38]} Rhe8 {[%emt 0:01:33]} 19. f3 {[%emt 0:05:25]} g6 {[%emt 0:02:38]} 20. Kf2 {[%emt 0:01:19]} b5 {[%emt 0:00:53]} 21. Rac1 {[%emt 0:08:06]} f5 {[%emt 0:07:25]} 22. Nb1 {[%emt 0:00:49]} Rxe1 {[%emt 0:01:27]} 23. Rxe1 {[%emt 0:00:07]} Nxb1 {[%emt 0:00:04]} 24. Rxb1 {[%emt 0:00:06]} c4 {[%emt 0:00:25]} 25. bxc4 {[%emt 0:03:46]} bxc4 {[%emt 0:00:04]} 26. Bxc4 {[%emt 0:00:50]} Rd2+ {[%emt 0:00:06]} 27. Be2 {[%emt 0:10:34]} Rxc2 {[%emt 0:00:06]} 28. Rb3 {[%emt 0:00:12]} Kc7 {[%emt 0:00:46]} 29. Ke3 {[%emt 0:04:46]} a5 {[%emt 0:01:52]} 30. Bb5 {[%emt 0:07:16]} a4 {[%emt 0:03:20]} 31. Rb4 {[%emt 0:00:57]} Bxb5 {[%emt 0:00:25]} 32. Rxb5 {[%emt 0:00:06]} Rc3+ {[%emt 0:00:04]} 33. Kf4 {[%emt 0:00:36]} Rxa3 {[%emt 0:00:20]} 34. Ra5 {[%emt 0:00:26]} Kb6 {[%emt 0:00:43]} 35. Ra8 {[%emt 0:00:07]} Kb5 {[%emt 0:00:23]} 36. Rb8+ {[%emt 0:02:15]} Kc6 {[%emt 0:00:25]} 37. Rc8+ {[%emt 0:06:47]} Kd5 {[%emt 0:01:50]} 38. Rh8 {[%emt 0:00:23]} Ke6 {[%emt 0:07:18]} 39. Rxh7 {[%emt 0:00:22] Ke5+} 1/2-1/2

[Event "Bicaz City Cup 2020"]
[Site "Bicaz"]
[Date "2020.03.08"]
[Round "6.10"]
[White "Pislariu, Stefanel-Vasilica"]
[Black "Chiprian, Ionel"]
[Result "1-0"]
[ECO "D37"]
[WhiteElo "1954"]
[BlackElo "1861"]
[Annotator "ChessBase"]
[PlyCount "87"]
[EventDate "2020.03.05"]
[EventType "swiss"]
[EventCountry "ROU"]
[SourceTitle "playchess.com"]
[Source "ChessBase"]
[SourceQuality "1"]
[TimeControl "5400+30"]

1. d4 {[%emt 0:00:46]} d5 {[%emt 0:00:00]} 2. c4 {[%emt 0:00:15]} e6 {[%emt 0:00:00]} 3. Nc3 {[%emt 0:00:14]} Nf6 {[%emt 0:00:01]} 4. Nf3 {[%emt 0:00:08]} Nbd7 {[%emt 0:00:21]} 5. e3 {[%emt 0:00:58]} a6 {[%emt 0:00:12]} 6. g3 {[%emt 0:09:09]} c6 {[%emt 0:05:38]} 7. Bg2 {[%emt 0:04:34]} Bb4 {[%emt 0:03:07]} 8. O-O {[%emt 0:02:07]} Bxc3 {[%emt 0:00:41]} 9. bxc3 {[%emt 0:00:17]} O-O {[%emt 0:00:08]} 10. Ne5 {[%emt 0:16:41]} Nxe5 {[%emt 0:05:17]} 11. dxe5 {[%emt 0:00:04]} Nd7 {[%emt 0:00:03]} 12. f4 {[%emt 0:00:51]} Nb6 {[%emt 0:04:08]} 13. cxd5 {[%emt 0:04:48]} cxd5 {[%emt 0:00:14]} 14. e4 {[%emt 0:00:49]} Qc7 {[%emt 0:01:50]} 15. Ba3 {[%emt 0:04:13]} Rd8 {[%emt 0:01:05]} 16. Bd6 {[%emt 0:00:16]} Qc6 {[%emt 0:00:31]} 17. Qd4 {[%emt 0:02:08]} Nc4 {[%emt 0:47:56]} 18. exd5 {[%emt 0:00:28]} Qa4 {[%emt 0:00:13]} 19. dxe6 {[%emt 0:00:59]} Bxe6 {[%emt 0:00:08]} 20. f5 {[%emt 0:01:45]} Bd7 {[%emt 0:00:44]} 21. Bxb7 {[%emt 0:03:06]} Bc6 {[%emt 0:00:33]} 22. Rab1 {[%emt 0:07:08]} Bxb7 {[%emt 0:01:38]} 23. Rxb7 {[%emt 0:00:18]} Qc6 {[%emt 0:01:21]} 24. Rc7 {[%emt 0:00:52]} Qxc7 {[%emt 0:05:15]} 25. Bxc7 {[%emt 0:00:04]} Rxd4 {[%emt 0:00:09]} 26. cxd4 {[%emt 0:00:04]} Ne3 {[%emt 0:00:10]} 27. Rf3 {[%emt 0:01:40]} Nd5 {[%emt 0:00:17]} 28. Bd6 {[%emt 0:00:11]} Rc8 {[%emt 0:00:14]} 29. Bc5 {[%emt 0:00:15]} g6 {[%emt 0:01:27]} 30. f6 {[%emt 0:00:56]} Nc7 {[%emt 0:00:15]} 31. Ra3 {[%emt 0:04:19]} h5 {[%emt 0:00:10]} 32. Kf2 {[%emt 0:02:58]} Ne6 {[%emt 0:00:19]} 33. Rc3 {[%emt 0:02:33]} a5 {[%emt 0:01:10]} 34. Ke3 {[%emt 0:00:43]} Kh7 {[%emt 0:00:44]} 35. Bb4 {[%emt 0:02:19]} Rb8 {[%emt 0:00:18]} 36. Be7 {[%emt 0:01:04]} Rb5 {[%emt 0:00:25]} 37. a4 {[%emt 0:00:20]} Rb2 {[%emt 0:00:09]} 38. d5 {[%emt 0:00:41]} Ng5 {[%emt 0:00:23]} 39. h4 {[%emt 0:00:14]} Rg2 {[%emt 0:06:50]} 40. hxg5 Rxg3+ {[%emt 0:00:02]} 41. Kd4 {[%emt 0:01:39]} Rxg5 {[%emt 0:02:39]} 42. d6 {[%emt 0:01:30]} Rg4+ {[%emt 0:00:18]} 43. Kc5 {[%emt 0:00:12]} h4 {[%emt 0:00:13]} 44. d7 {[%emt 0:00:25]} 1-0

[Event "Bicaz City Cup 2020"]
[Site "Bicaz"]
[Date "2020.03.08"]
[Round "6.11"]
[White "Tufa, Mihai"]
[Black "Arghirescu, Andrei"]
[Result "1/2-1/2"]
[ECO "C00"]
[WhiteElo "1835"]
[BlackElo "2015"]
[Annotator "ChessBase"]
[PlyCount "81"]
[EventDate "2020.03.05"]
[EventType "swiss"]
[EventCountry "ROU"]
[SourceTitle "playchess.com"]
[Source "ChessBase"]
[SourceQuality "1"]
[TimeControl "5400+30"]

1. e4 {[%emt 0:00:00]} e6 {[%emt 0:01:01]} 2. d4 {[%emt 0:00:00]} b6 {[%emt 0:00:03]} 3. Nf3 {[%emt 0:01:13]} Bb7 {[%emt 0:00:07]} 4. Bd3 {[%emt 0:00:34]} Nf6 {[%emt 0:00:41]} 5. Qe2 {[%emt 0:02:51]} c5 {[%emt 0:00:39]} 6. c3 {[%emt 0:00:38]} Nc6 {[%emt 0:00:18]} 7. d5 {[%emt 0:04:27]} Nb8 {[%emt 0:16:34]} 8. c4 {[%emt 0:00:26]} d6 {[%emt 0:12:45]} 9. Nc3 {[%emt 0:01:17]} Be7 {[%emt 0:03:10]} 10. O-O {[%emt 0:01:40]} Nbd7 {[%emt 0:09:52]} 11. h3 {[%emt 0:03:14]} Nf8 {[%emt 0:08:39]} 12. Nh2 {[%emt 0:00:55]} Ng6 {[%emt 0:03:19]} 13. f4 {[%emt 0:01:00]} e5 {[%emt 0:01:42]} 14. f5 {[%emt 0:00:32]} Nf8 {[%emt 0:00:22]} 15. g4 {[%emt 0:01:09]} h6 {[%emt 0:00:41]} 16. Nf3 {[%emt 0:10:27]} a6 {[%emt 0:01:07]} 17. Bc2 {[%emt 0:02:07]} Bc8 {[%emt 0:00:15]} 18. Ba4+ {[%emt 0:00:50]} Bd7 {[%emt 0:00:47]} 19. Bxd7+ {[%emt 0:01:01]} N8xd7 {[%emt 0:01:51]} 20. a4 {[%emt 0:01:42]} Nh7 {[%emt 0:03:09]} 21. Be3 {[%emt 0:07:36]} Ng5 {[%emt 0:03:07]} 22. Kg2 {[%emt 0:03:06]} Nxf3 {[%emt 0:10:22]} 23. Qxf3 {[%emt 0:05:39]} Bg5 {[%emt 0:00:15]} 24. Rfe1 {[%emt 0:05:34]} Bxe3 25. Qxe3 {[%emt 0:00:28]} Qh4 {[%emt 0:05:09]} 26. Ne2 {[%emt 0:02:00]} Nf6 {[%emt 0:06:51]} 27. Ng1 {[%emt 0:01:43]} Qg5 {[%emt 0:03:53]} 28. Qxg5 {[%emt 0:00:49]} hxg5 {[%emt 0:00:02]} 29. Nf3 {[%emt 0:00:28]} Nh7 {[%emt 0:00:08]} 30. Rh1 {[%emt 0:04:13]} Ke7 {[%emt 0:00:51]} 31. Rhb1 {[%emt 0:02:03]} a5 {[%emt 0:02:01]} 32. Rh1 {[%emt 0:00:25]} Rag8 {[%emt 0:00:39]} 33. Rh2 {[%emt 0:00:24]} g6 {[%emt 0:01:57]} 34. Rah1 {[%emt 0:07:29]} gxf5 {[%emt 0:00:12]} 35. exf5 {[%emt 0:00:25]} Nf6 {[%emt 0:00:41]} 36. Re1 {[%emt 0:00:52]} Kd7 {[%emt 0:00:20]} 37. Nd2 {[%emt 0:01:29]} Rh6 {[%emt 0:02:09]} 38. Ne4 {[%emt 0:00:39]} Ke7 {[%emt 0:01:37]} 39. Kg3 {[%emt 0:01:14]} Nxe4+ {[%emt 0:01:10]} 40. Rxe4 {[%emt 0:00:10]} f6 {[%emt 0:00:19]} 41. Re3 1/2-1/2